fUST/lending_fUST_20260219
["ID","MTS","AMOUNT","RATE_DAILY","PERIOD"]
[405990959,1771508851050,-500.0,0.00016885,2]
[405990960,1771508851070,-500.0,0.00016885,2]
[405990961,1771508851092,-500.0,0.00016885,2]
[405990962,1771508851113,-500.0,0.00016885,2]
[405990963,1771508851135,-368.84921868,0.00016885,2]
[405990964,1771508851155,-500.0,0.00016885,2]
[405990965,1771508851177,-500.0,0.00016885,2]
[405990966,1771508851197,-500.0,0.00016885,2]
[405990967,1771508851219,-500.0,0.00016885,2]
[405990968,1771508851241,-500.0,0.00016885,2]
[405990969,1771508851263,-500.0,0.00016885,2]
[405990970,1771508851284,-500.0,0.00016885,2]
[405990971,1771508851305,-500.0,0.00016885,2]
[405990972,1771508851326,-500.0,0.00016885,2]
[405990973,1771508851347,-500.0,0.00016885,2]
[405990974,1771508851368,-500.0,0.00016885,2]
[405990975,1771508851391,-500.0,0.00016885,2]
[405990976,1771508851411,-500.0,0.00016885,2]
[405990977,1771508851432,-500.0,0.00016885,2]
[405990978,1771508851453,-500.0,0.00016885,2]
[405990979,1771508851476,-500.0,0.00016885,2]
[405990980,1771508851498,-500.0,0.00016885,2]
[405990981,1771508851518,-300.0,0.00016886,2]
[405990982,1771508851538,-300.0,0.00016886,2]
[405990983,1771508851559,-300.0,0.00016886,2]
[405990984,1771508851579,-41994.34889503,0.00016886,2]
[405990985,1771508851600,-500.0,0.00016887,2]
[405990986,1771508851622,-250.0,0.00016986,2]
[405990987,1771508851642,-500.0,0.00016988,2]
[405990988,1771508851661,-517.55708191,0.00016988,2]
[405990989,1771508851682,-500.0,0.00016988,2]
[405990990,1771508851702,-500.0,0.00016988,2]
[405990991,1771508851723,-500.0,0.00016988,2]
[405990992,1771508851743,-500.0,0.00016988,2]
[405990993,1771508851765,-500.0,0.00016988,2]
[405990994,1771508851785,-500.0,0.00016988,2]
[405990995,1771508851805,-500.0,0.00016989,2]
[405990996,1771508851826,-500.0,0.00016989,2]
[405990997,1771508851849,-177.0,0.00017061,2]
[405990998,1771508851868,-500.0,0.00017161,2]
[405990999,1771508851889,-500.0,0.00017435,2]
[405991000,1771508851908,-350.0,0.00017534,2]
[405991001,1771508851932,-912.36,0.00017997,2]
[405991002,1771508851952,-912.36,0.00017997,2]
[405991003,1771508851971,-912.36,0.00017997,2]
[405991004,1771508851990,-500.0,0.00017997,2]
[405991005,1771508852010,-500.0,0.00017997,2]
[405991006,1771508852030,-500.0,0.00017997,2]
[405991007,1771508852050,-505.32011301,0.00017997,2]
[405991008,1771508852071,-500.0,0.00017997,2]
[405991009,1771508852090,-500.0,0.00017999,2]
[405991010,1771508852109,-500.0,0.00017999,2]
[405991011,1771508852134,-500.0,0.00017999,2]
[405991012,1771508852156,-500.0,0.00017999,2]
[405991013,1771508852175,-500.0,0.00017999,2]
[405991014,1771508852198,-500.0,0.00017999,2]
[405991015,1771508852220,-493.54424444,0.00017999,2]
[405991016,1771508852240,-8594.81717808,0.00017999,2]
[405991017,1771508852261,-504.22557757,0.00017999,2]
[405991018,1771508852280,-500.0,0.00017999,2]
[405991019,1771508852300,-1702.94788194,0.00017999,2]
[405991020,1771508852321,-500.0,0.00018149,2]
[405991021,1771508852344,-600.0,0.00018358,2]
[405991022,1771508852364,-420.0,0.00018443,2]
[405991023,1771508852384,-338.0,0.00018445,2]
[405991024,1771508852404,-305.0,0.00018445,2]
[405991025,1771508852426,-1680.0,0.00018536,2]
[405991026,1771508852446,-912.36,0.00018733,2]
[405991027,1771508852467,-204.0,0.00019061,2]
[405991028,1771508852489,-500.0,0.00019652,2]
[405991029,1771508852509,-166.05,0.000198,2]
[405991030,1771508852529,-176.544026,0.00019946,2]
[405991031,1771508852549,-151.67206477,0.0002,2]
[405991032,1771508852569,-500.0,0.00020132,2]
[405991033,1771508852589,-587.0,0.00020147,2]
[405991034,1771508852609,-587.0,0.00020165,2]
[405991035,1771508852632,-720.0,0.00020194,2]
[405991036,1771508852656,-725.83071595,0.00020252,2]
[405991037,1771508852677,-571.0,0.00020349,2]
[405991038,1771508852698,-500.0,0.00020843,2]
[405991039,1771508852718,-500.0,0.00020902,2]
[405991040,1771508852745,-231.0,0.00021061,2]
[405991041,1771508852767,-500.0,0.00021318,2]
[405991042,1771508852788,-500.0,0.00021959,2]
[405991043,1771508852810,-823.0,0.00022007,2]
[405991044,1771508852836,-864.0,0.00022213,10]
[405991045,1771508852862,-429.05,0.0002276,3]
[405991046,1771508852885,-214.52,0.0002276,3]
[405991047,1771508852906,-178.77,0.0002276,3]
[405991048,1771508852930,-536.32,0.0002276,3]
[405991049,1771508852952,-3380.75,0.0002276,10]
[405991050,1771508852972,-2817.29,0.0002276,10]
[405991051,1771508852993,-2347.74,0.0002276,10]
[405991052,1771508853013,-912.36,0.00022769,2]
[405991053,1771508853036,-21923.14223257,0.0002277,2]
[405991054,1771508853058,-170.04,0.000228,7]
[405991055,1771508853161,-258.0,0.00023061,2]
[405991056,1771508853204,-548.82696978,0.00023162,2]
[405991057,1771508853225,-176.544026,0.00023371,2]
[405991058,1771508853247,-725.83071595,0.00023718,2]
[405991059,1771508853270,-592.0,0.00024039,2]
[405991060,1771508853292,-858.1,0.0002413,3]
[405991061,1771508853314,-357.54,0.0002413,3]
[405991062,1771508853335,-912.36,0.00024335,2]
[405991063,1771508853357,-635.0,0.00024404,2]
[405991064,1771508853378,-1382.0,0.00024404,2]
[405991065,1771508853402,-1000.0,0.00024434,10]
[405991066,1771508853424,-743.60641596,0.00024657,2]
[405991067,1771508853445,-650.88923846,0.000248,2]
[405991068,1771508853468,-732.73840528,0.00024819,5]
[405991069,1771508853488,-179.0,0.00025,7]
[405991070,1771508853512,-285.0,0.00025061,2]
[405991071,1771508853535,-168.0,0.00025091,2]
[405991072,1771508853558,-168.0,0.00025099,2]
[405991073,1771508853580,-500.0,0.00025176,7]
[405991074,1771508853603,-168.0,0.00025191,2]
[405991075,1771508853628,-168.0,0.00025352,2]
[405991076,1771508853650,-150.0,0.00025405,2]
[405991077,1771508853676,-168.0,0.00025532,2]
[405991078,1771508853698,-633.08673516,0.0002571,2]
[405991079,1771508853722,-1139.5561233,0.0002571,2]
[405991080,1771508853744,-2025.87755252,0.0002571,2]
[405991081,1771508853766,-3165.43367582,0.0002571,2]
[405991082,1771508853787,-4558.22449318,0.0002571,2]
[405991083,1771508853811,-357.32833151,0.0002571,2]
[405991084,1771508853832,-643.19099672,0.0002571,2]
[405991085,1771508853858,-1143.45066084,0.0002571,2]
[405991086,1771508853882,-512.01237852,0.0002571,2]
[405991087,1771508853904,-921.62228133,0.0002571,2]
[405991088,1771508853927,-1638.43961126,0.0002571,2]
[405991089,1771508853948,-2560.06189259,0.0002571,2]
[405991090,1771508853971,-179.0,0.0002589,7]
[405991091,1771508853998,-492.268525,0.000259,10]
[405991092,1771508854019,-505.16804455,0.00026135,10]
[405991093,1771508854041,-168.0,0.00026163,2]
[405991094,1771508854063,-168.0,0.00026232,2]
[405991095,1771508854085,-500.0,0.00026238,7]
[405991096,1771508854107,-168.0,0.00026478,2]
[405991097,1771508854131,-176.544026,0.00026795,2]
[405991098,1771508854153,-888.25,0.00026876,2]
[405991099,1771508854175,-1000.0,0.00026878,30]
[405991100,1771508854199,-244.0,0.00026878,30]
[405991101,1771508854219,-151.0,0.00027089,2]
[405991102,1771508854242,-168.0,0.00027181,2]
[405991103,1771508854267,-725.83071595,0.00027183,2]
[405991104,1771508854288,-180.476,0.000273,16]
[405991105,1771508854308,-635.0,0.00027404,2]
[405991106,1771508854328,-1382.0,0.00027404,2]
[405991107,1771508854349,-435.0,0.00027522,10]
[405991108,1771508854370,-516.0,0.00027522,10]
[405991109,1771508854391,-17396.33,0.000276,2]
[405991110,1771508854412,-200.0,0.00027823,17]
[405991111,1771508854433,-2928.02266749,0.00028136,5]
[405991112,1771508854453,-681.033613,0.00028136,5]
[405991113,1771508854474,-325.44461923,0.000287,2]
[405991114,1771508854495,-1790.47177901,0.0002871,5]
[405991115,1771508854515,-163.61,0.000288,14]
[405991116,1771508854536,-912.36,0.00028999,2]
[405991117,1771508854559,-1000.0,0.00029566,30]
[405991118,1771508854580,-492.0,0.00029566,30]
[405991119,1771508854602,-345.0,0.000298,2]
[405991120,1771508854622,-176.544026,0.0003022,60]
[405991121,1771508854644,-631.0,0.00030404,2]
[405991122,1771508854668,-237.698,0.00030404,2]
[405991123,1771508854688,-725.83071595,0.00030648,2]
[405991124,1771508854708,-200.0,0.00030949,26]
[405991125,1771508854729,-17396.33,0.000318,2]
[405991126,1771508854752,-807.0,0.00032522,30]
[405991127,1771508854773,-325.44461923,0.00032866,2]
[405991128,1771508854794,-912.36,0.00032875,2]
[405991129,1771508854814,-912.36,0.00032875,2]
[405991130,1771508854835,-912.36,0.00032875,2]
[405991131,1771508854857,-500.0,0.00032876,19]
[405991132,1771508854879,-500.0,0.00032876,19]
[405991133,1771508854899,-500.0,0.00032876,19]
[405991134,1771508854919,-500.0,0.00032876,19]
[405991135,1771508854943,-1002.09277717,0.00032876,2]
[405991136,1771508854966,-500.0,0.00032876,19]
[405991137,1771508854987,-500.0,0.00032876,19]
[405991138,1771508855008,-500.0,0.00032876,19]
[405991139,1771508855028,-500.0,0.00032876,19]
[405991140,1771508855048,-500.0,0.00032876,19]
[405991141,1771508855070,-500.0,0.00032876,19]
[405991142,1771508855091,-500.0,0.00032876,19]
[405991143,1771508855112,-500.0,0.00032876,19]
[405991144,1771508855133,-500.0,0.00032876,19]
[405991145,1771508855152,-500.0,0.00032876,19]
[405991146,1771508855173,-561.13,0.00032876,19]
[405991147,1771508855193,-500.0,0.00032876,19]
[405991148,1771508855213,-500.0,0.00032876,19]
[405991149,1771508855234,-500.0,0.00032876,2]
[405991150,1771508855254,-574.96,0.00032876,19]
[405991151,1771508855274,-500.0,0.00032876,19]
[405991152,1771508855295,-500.0,0.00032876,19]
[405991153,1771508855314,-582.34,0.00032876,19]
[405991154,1771508855334,-1498.98,0.00032876,19]
[405991155,1771508855354,-500.0,0.00032876,19]
[405991156,1771508855378,-500.0,0.00032876,19]
[405991157,1771508855399,-500.0,0.00032876,19]
[405991158,1771508855511,-500.0,0.00032876,19]
[405991159,1771508855531,-500.0,0.00032876,19]
[405991160,1771508855552,-500.0,0.00032876,19]
[405991161,1771508855574,-500.0,0.00032876,19]
[405991162,1771508855594,-1610.0,0.00032876,19]
[405991163,1771508855615,-500.0,0.00032876,19]
[405991164,1771508855637,-1751.05,0.00032876,120]
[405991165,1771508855658,-760.83,0.00032876,19]
[405991166,1771508855679,-447.15872299,0.00032876,19]
[405991167,1771508855700,-4343.54,0.00032876,19]
[405991168,1771508855720,-1556.96,0.00032876,7]
[405991169,1771508855741,-1340.36,0.00032876,19]
[405991170,1771508855762,-500.0,0.00032876,19]
[405991171,1771508855785,-500.0,0.00032876,19]
[405991172,1771508855807,-735.8,0.00032876,19]
[405991173,1771508855828,-393.64401524,0.00032876,19]
[405991174,1771508855853,-952.93,0.00032876,19]
[405991175,1771508855877,-568.35,0.00032876,19]
[405991176,1771508855899,-500.0,0.00032876,19]
[405991177,1771508855923,-500.0,0.00032876,19]
[405991178,1771508855945,-500.0,0.00032876,19]
[405991179,1771508855966,-500.0,0.00032876,19]
[405991180,1771508855987,-500.0,0.00032876,19]
[405991181,1771508856007,-1358.71,0.00032876,19]
[405991182,1771508856030,-500.0,0.00032876,19]
[405991183,1771508856052,-19418.66,0.00032876,19]
[405991184,1771508856074,-526.23,0.00032876,19]
[405991185,1771508856096,-500.0,0.00032876,19]
[405991186,1771508856116,-693.84,0.00032876,19]
[405991187,1771508856138,-3081.61,0.00032876,19]
[405991188,1771508856159,-325.44461923,0.0003314,2]
[405991189,1771508856181,-912.36,0.00033149,2]
[405991190,1771508856201,-912.36,0.00033149,2]
[405991191,1771508856224,-912.36,0.00033149,2]
[405991192,1771508856245,-500.0,0.0003315,19]
[405991193,1771508856266,-500.0,0.0003315,19]
[405991194,1771508856286,-500.0,0.0003315,19]
[405991195,1771508856308,-500.0,0.0003315,19]
[405991196,1771508856332,-534.5989813,0.0003315,19]
[405991197,1771508856354,-500.0,0.0003315,19]
[405991198,1771508856374,-500.0,0.0003315,19]
[405991199,1771508856397,-500.0,0.0003315,19]
[405991200,1771508856419,-500.0,0.0003315,19]
[405991201,1771508856440,-500.0,0.0003315,19]
[405991202,1771508856461,-533.49939883,0.0003315,19]
[405991203,1771508856484,-500.0,0.0003315,19]
[405991204,1771508856509,-500.0,0.0003315,19]
[405991205,1771508856532,-500.0,0.0003315,19]
[405991206,1771508856553,-561.13,0.0003315,19]
[405991207,1771508856574,-500.0,0.0003315,19]
[405991208,1771508856595,-500.0,0.0003315,19]
[405991209,1771508856617,-500.0,0.0003315,2]
[405991210,1771508856638,-574.96,0.0003315,19]
[405991211,1771508856661,-500.0,0.0003315,19]
[405991212,1771508856684,-500.0,0.0003315,19]
[405991213,1771508856705,-582.34,0.0003315,19]
[405991214,1771508856728,-1498.98,0.0003315,19]
[405991215,1771508856749,-500.0,0.0003315,19]
[405991216,1771508856771,-503.55826467,0.0003315,19]
[405991217,1771508856792,-500.0,0.0003315,19]
[405991218,1771508856814,-500.0,0.0003315,19]
[405991219,1771508856835,-500.0,0.0003315,19]
[405991220,1771508856863,-500.0,0.0003315,19]
[405991221,1771508856886,-500.0,0.0003315,19]
[405991222,1771508856909,-1610.0,0.0003315,19]
[405991223,1771508856932,-500.0,0.0003315,19]
[405991224,1771508856952,-760.83,0.0003315,19]
[405991225,1771508856971,-4343.54,0.0003315,19]
[405991226,1771508856993,-1556.96,0.0003315,7]
[405991227,1771508857013,-1340.36,0.0003315,19]
[405991228,1771508857033,-500.0,0.0003315,19]
[405991229,1771508857055,-500.0,0.0003315,19]
[405991230,1771508857077,-735.8,0.0003315,19]
[405991231,1771508857098,-952.93,0.0003315,19]
[405991232,1771508857121,-568.35,0.0003315,19]
[405991233,1771508857142,-500.0,0.0003315,19]
[405991234,1771508857163,-500.0,0.0003315,19]
[405991235,1771508857184,-500.0,0.0003315,19]
[405991236,1771508857203,-500.0,0.0003315,19]
[405991237,1771508857225,-500.0,0.0003315,19]
[405991238,1771508857246,-1358.71,0.0003315,19]
[405991239,1771508857269,-500.0,0.0003315,19]
[405991240,1771508857290,-19418.66,0.0003315,19]
[405991241,1771508857311,-526.23,0.0003315,19]
[405991242,1771508857334,-500.0,0.0003315,19]
[405991243,1771508857355,-693.84,0.0003315,19]
[405991244,1771508857375,-3081.61,0.0003315,19]
[405991245,1771508857397,-650.88923846,0.00033414,2]
[405991246,1771508857418,-912.36,0.00033423,2]
[405991247,1771508857439,-912.36,0.00033423,2]
[405991248,1771508857460,-500.0,0.00033424,19]
[405991249,1771508857481,-500.0,0.00033424,19]
[405991250,1771508857502,-500.0,0.00033424,19]
[405991251,1771508857524,-500.0,0.00033424,19]
[405991252,1771508857545,-500.0,0.00033424,19]
[405991253,1771508857567,-162.59476327,0.00033424,19]
[405991254,1771508857588,-500.0,0.00033424,19]
[405991255,1771508857609,-500.0,0.00033424,19]
[405991256,1771508857721,-500.0,0.00033424,19]
[405991257,1771508857744,-210.37417731,0.00033424,19]
[405991258,1771508857767,-500.0,0.00033424,19]
[405991259,1771508857789,-500.0,0.00033424,19]
[405991260,1771508857811,-561.13,0.00033424,19]
[405991261,1771508857832,-500.0,0.00033424,19]
[405991262,1771508857859,-500.0,0.00033424,19]
[405991263,1771508857881,-500.0,0.00033424,2]
[405991264,1771508857906,-574.96,0.00033424,19]
[405991265,1771508857930,-558.49565661,0.00033424,19]
[405991266,1771508857951,-500.0,0.00033424,19]
[405991267,1771508857972,-582.34,0.00033424,19]
[405991268,1771508857992,-1498.98,0.00033424,19]
[405991269,1771508858019,-500.0,0.00033424,19]
[405991270,1771508858039,-500.0,0.00033424,19]
[405991271,1771508858062,-500.0,0.00033424,19]
[405991272,1771508858085,-500.0,0.00033424,19]
[405991273,1771508858109,-500.0,0.00033424,19]
[405991274,1771508858339,-500.0,0.00033424,19]
[405991275,1771508858363,-1610.0,0.00033424,19]
[405991276,1771508858394,-500.0,0.00033424,19]
[405991277,1771508858418,-760.83,0.00033424,19]
[405991278,1771508858439,-4343.54,0.00033424,19]
[405991279,1771508858462,-1556.96,0.00033424,7]
[405991280,1771508858485,-1340.36,0.00033424,19]
[405991281,1771508858507,-500.0,0.00033424,19]
[405991282,1771508858528,-500.0,0.00033424,19]
[405991283,1771508858552,-735.8,0.00033424,19]
[405991284,1771508858575,-952.93,0.00033424,19]
[405991285,1771508858598,-568.35,0.00033424,19]
[405991286,1771508858621,-500.0,0.00033424,19]
[405991287,1771508858644,-500.0,0.00033424,19]
[405991288,1771508858667,-500.0,0.00033424,19]
[405991289,1771508858691,-500.0,0.00033424,19]
[405991290,1771508858713,-500.0,0.00033424,19]
[405991291,1771508858737,-1358.71,0.00033424,19]
[405991292,1771508858761,-500.0,0.00033424,19]
[405991293,1771508858784,-19418.66,0.00033424,19]
[405991294,1771508858806,-526.23,0.00033424,19]
[405991295,1771508858828,-500.0,0.00033424,19]
[405991296,1771508858853,-693.84,0.00033424,19]
[405991297,1771508858876,-3081.61,0.00033424,19]
[405991298,1771508858899,-325.44461923,0.00033688,2]
[405991299,1771508858922,-912.36,0.00033697,2]
[405991300,1771508858944,-912.36,0.00033697,2]
[405991301,1771508858967,-912.36,0.00033697,2]
[405991302,1771508858990,-500.0,0.00033698,19]
[405991303,1771508859012,-500.0,0.00033698,19]
[405991304,1771508859034,-500.0,0.00033698,19]
[405991305,1771508859054,-500.0,0.00033698,19]
[405991306,1771508859077,-500.0,0.00033698,19]
[405991307,1771508859098,-500.0,0.00033698,19]
[405991308,1771508859119,-500.0,0.00033698,19]
[405991309,1771508859141,-500.0,0.00033698,19]
[405991310,1771508859163,-500.0,0.00033698,19]
[405991311,1771508859185,-500.0,0.00033698,19]
[405991312,1771508859207,-561.13,0.00033698,19]
[405991313,1771508859229,-500.0,0.00033698,19]
[405991314,1771508859250,-569.7265809,0.00033698,19]
[405991315,1771508859270,-500.0,0.00033698,2]
[405991316,1771508859291,-574.96,0.00033698,19]
[405991317,1771508859313,-500.0,0.00033698,19]
[405991318,1771508859336,-582.34,0.00033698,19]
[405991319,1771508859358,-1498.98,0.00033698,19]
[405991320,1771508859379,-500.0,0.00033698,19]
[405991321,1771508859403,-500.0,0.00033698,19]
[405991322,1771508859426,-500.0,0.00033698,19]
[405991323,1771508859447,-500.0,0.00033698,19]
[405991324,1771508859472,-500.0,0.00033698,19]
[405991325,1771508859493,-338.95957919,0.00033698,19]
[405991326,1771508859515,-1610.0,0.00033698,19]
[405991327,1771508859536,-500.0,0.00033698,19]
[405991328,1771508859558,-760.83,0.00033698,19]
[405991329,1771508859579,-4343.54,0.00033698,19]
[405991330,1771508859599,-1556.96,0.00033698,7]
[405991331,1771508859619,-1340.36,0.00033698,19]
[405991332,1771508859640,-500.0,0.00033698,19]
[405991333,1771508859661,-500.0,0.00033698,19]
[405991334,1771508859684,-735.8,0.00033698,19]
[405991335,1771508859705,-952.93,0.00033698,19]
[405991336,1771508859727,-568.35,0.00033698,19]
[405991337,1771508859748,-500.0,0.00033698,19]
[405991338,1771508859769,-500.0,0.00033698,19]
[405991339,1771508859791,-500.0,0.00033698,19]
[405991340,1771508859812,-500.0,0.00033698,19]
[405991341,1771508859834,-500.0,0.00033698,19]
[405991342,1771508859858,-1358.71,0.00033698,19]
[405991343,1771508859880,-500.0,0.00033698,19]
[405991344,1771508859904,-19418.66,0.00033698,19]
[405991345,1771508859927,-526.23,0.00033698,19]
[405991346,1771508859947,-500.0,0.00033698,19]
[405991347,1771508859969,-693.84,0.00033698,19]
[405991348,1771508859992,-3081.61,0.00033698,19]
[405991349,1771508860015,-163.61,0.000337,30]
[405991350,1771508860166,-325.44461923,0.00033962,2]
[405991351,1771508860189,-912.36,0.00033971,2]
[405991352,1771508860211,-912.36,0.00033971,2]
[405991353,1771508860232,-912.36,0.00033971,2]
[405991354,1771508860253,-912.36,0.00033971,2]
[405991355,1771508860276,-912.36,0.00033971,2]
[405991356,1771508860298,-912.58159966,0.00033971,2]
[405991357,1771508860319,-500.0,0.00033972,19]
[405991358,1771508860340,-500.0,0.00033972,19]
[405991359,1771508860365,-500.0,0.00033972,19]
[405991360,1771508860387,-500.0,0.00033972,19]
[405991361,1771508860411,-341.641002,0.00033972,19]
[405991362,1771508860431,-500.0,0.00033972,19]
[405991363,1771508860453,-500.0,0.00033972,19]
[405991364,1771508860474,-500.0,0.00033972,19]
[405991365,1771508860494,-500.0,0.00033972,19]
[405991366,1771508860516,-500.0,0.00033972,19]
[405991367,1771508860540,-561.13,0.00033972,19]
[405991368,1771508860562,-500.0,0.00033972,19]
[405991369,1771508860583,-500.0,0.00033972,2]
[405991370,1771508860603,-574.96,0.00033972,19]
[405991371,1771508860624,-500.0,0.00033972,19]
[405991372,1771508860646,-582.34,0.00033972,19]
[405991373,1771508860668,-1498.98,0.00033972,19]
[405991374,1771508860689,-500.0,0.00033972,19]
[405991375,1771508860710,-500.0,0.00033972,19]
[405991376,1771508860732,-500.0,0.00033972,19]
[405991377,1771508860753,-500.0,0.00033972,19]
[405991378,1771508860775,-500.0,0.00033972,19]
[405991379,1771508860797,-1610.0,0.00033972,19]
[405991380,1771508860818,-500.0,0.00033972,19]
[405991381,1771508860839,-760.83,0.00033972,19]
[405991382,1771508860863,-4343.54,0.00033972,19]
[405991383,1771508860884,-1556.96,0.00033972,7]
[405991384,1771508860905,-1340.36,0.00033972,19]
[405991385,1771508860928,-500.0,0.00033972,19]
[405991386,1771508860953,-735.8,0.00033972,19]
[405991387,1771508860972,-500.0,0.00033972,19]
[405991388,1771508860993,-952.93,0.00033972,19]
[405991389,1771508861013,-568.35,0.00033972,19]
[405991390,1771508861037,-500.0,0.00033972,19]
[405991391,1771508861058,-500.0,0.00033972,19]
[405991392,1771508861079,-500.0,0.00033972,19]
[405991393,1771508861100,-500.0,0.00033972,19]
[405991394,1771508861126,-500.0,0.00033972,19]
[405991395,1771508861149,-1358.71,0.00033972,19]
[405991396,1771508861172,-500.0,0.00033972,19]
[405991397,1771508861194,-19418.66,0.00033972,19]
[405991398,1771508861217,-526.23,0.00033972,19]
[405991399,1771508861239,-500.0,0.00033972,19]
[405991400,1771508861260,-693.84,0.00033972,19]
[405991401,1771508861280,-3081.61,0.00033972,19]
[405991402,1771508861300,-325.44461923,0.0003398,2]
[405991403,1771508861320,-33306.13984934,0.0003399,2]
[405991404,1771508861344,-200.0,0.00034074,38]
[405991405,1771508861364,-725.83071595,0.00034113,2]
[405991406,1771508861385,-325.44461923,0.00034236,2]
[405991407,1771508861407,-500.0,0.00034246,19]
[405991408,1771508861430,-500.0,0.00034246,19]
[405991409,1771508861451,-500.0,0.00034246,19]
[405991410,1771508861472,-500.0,0.00034246,19]
[405991411,1771508861492,-500.0,0.00034246,19]
[405991412,1771508861512,-444.54162411,0.00034246,19]
[405991413,1771508861535,-500.0,0.00034246,19]
[405991414,1771508861556,-500.0,0.00034246,19]
[405991415,1771508861577,-500.0,0.00034246,19]
[405991416,1771508861599,-561.13,0.00034246,19]
[405991417,1771508861620,-500.0,0.00034246,19]
[405991418,1771508861643,-500.0,0.00034246,2]
[405991419,1771508861666,-574.96,0.00034246,19]
[405991420,1771508861686,-500.0,0.00034246,19]
[405991421,1771508861708,-582.34,0.00034246,19]
[405991422,1771508861734,-1498.98,0.00034246,19]
[405991423,1771508861755,-500.0,0.00034246,19]
[405991424,1771508861779,-500.0,0.00034246,19]
[405991425,1771508861801,-500.0,0.00034246,19]
[405991426,1771508861822,-500.0,0.00034246,19]
[405991427,1771508861847,-500.0,0.00034246,19]
[405991428,1771508861868,-1610.0,0.00034246,19]
[405991429,1771508861889,-500.0,0.00034246,19]
[405991430,1771508861910,-1751.05,0.00034246,120]
[405991431,1771508861933,-760.83,0.00034246,19]
[405991432,1771508861954,-4343.54,0.00034246,19]
[405991433,1771508861974,-1556.96,0.00034246,7]
[405991434,1771508861994,-1340.36,0.00034246,19]
[405991435,1771508862015,-500.0,0.00034246,19]
[405991436,1771508862037,-735.8,0.00034246,19]
[405991437,1771508862058,-500.0,0.00034246,19]
[405991438,1771508862079,-952.93,0.00034246,19]
[405991439,1771508862101,-568.35,0.00034246,19]
[405991440,1771508862219,-500.0,0.00034246,19]
[405991441,1771508862246,-500.0,0.00034246,19]
[405991442,1771508862268,-500.0,0.00034246,19]
[405991443,1771508862290,-500.0,0.00034246,19]
[405991444,1771508862312,-500.0,0.00034246,19]
[405991445,1771508862334,-1358.71,0.00034246,19]
[405991446,1771508862356,-500.0,0.00034246,19]
[405991447,1771508862378,-19418.66,0.00034246,19]
[405991448,1771508862404,-526.23,0.00034246,19]
[405991449,1771508862427,-500.0,0.00034246,19]
[405991450,1771508862452,-693.84,0.00034246,19]
[405991451,1771508862474,-3081.61,0.00034246,19]
[405991452,1771508862497,-161.36555838,0.00034294,10]
[405991453,1771508862521,-6863.43610584,0.000343,2]
[405991485,1771509032291,-150.628,0.00024404,2]
[405991488,1771509032301,-150.0,0.00027404,2]
[405991490,1771509032310,-8.012,0.0003,30]
[405991492,1771509032321,-1005.578,0.0003,30]
[405991494,1771509032330,-581.86387843,0.000309,30]